[Event "Open Nuevo Centro. Jornada 2"]
[Site "Chess.com"]
[Date "2020.06.26"]
[Round "4"]
[White "Castellano López, Javier"]
[Black "Martinez Hernandez, Paula"]
[Result "1-0"]
[WhiteElo "1808"]
[BlackElo "2026"]
[TimeControl "180+2"]
[EndTime "11:14:25 PDT"]
[Termination "Victoria de its_xavi_official por abandono"]

1. d4 {[%clk 0:03:01.9]} 1... f5 {[%clk 0:02:50.9]} 2. c4 {[%clk 0:03:00]} 2...
Nf6 {[%clk 0:02:52]} 3. Nc3 {[%clk 0:02:58.5]} 3... g6 {[%clk 0:02:52.2]} 4. Nf3
{[%clk 0:02:58]} 4... Bg7 {[%clk 0:02:47.5]} 5. e3 {[%clk 0:02:58.2]} 5... d6
{[%clk 0:02:47.2]} 6. b3 {[%clk 0:02:58]} 6... O-O {[%clk 0:02:38]} 7. Bb2
{[%clk 0:02:58.4]} 7... c6 {[%clk 0:02:34.5]} 8. Be2 {[%clk 0:02:59.1]} 8... Qe8
{[%clk 0:02:33.6]} 9. O-O {[%clk 0:02:53.7]} 9... e5 {[%clk 0:02:32.1]} 10. dxe5
{[%clk 0:02:50]} 10... dxe5 {[%clk 0:02:32.7]} 11. Qc2 {[%clk 0:02:37.3]} 11...
Na6 {[%clk 0:02:17.7]} 12. Ba3 {[%clk 0:02:34.4]} 12... c5 {[%clk 0:02:06.3]}
13. Rad1 {[%clk 0:02:34.1]} 13... b6 {[%clk 0:02:06.7]} 14. Bb2 {[%clk
0:02:29.7]} 14... Bb7 {[%clk 0:01:59.8]} 15. Rd2 {[%clk 0:02:24.3]} 15... Rd8
{[%clk 0:01:47.6]} 16. Rfd1 {[%clk 0:02:24.4]} 16... Rxd2 {[%clk 0:01:45.8]} 17.
Qxd2 {[%clk 0:02:21.6]} 17... Nb4 {[%clk 0:01:27.8]} 18. a3 {[%clk 0:02:19.1]}
18... Nc6 {[%clk 0:01:27.2]} 19. Nb5 {[%clk 0:02:14.1]} 19... Ne4 {[%clk
0:01:20.8]} 20. Qc2 {[%clk 0:02:03.7]} 20... Qe7 {[%clk 0:01:17.8]} 21. Nd2
{[%clk 0:01:44.3]} 21... Ng5 {[%clk 0:01:09.2]} 22. Nf3 {[%clk 0:01:31.5]} 22...
Nf7 {[%clk 0:01:04.6]} 23. Nc3 {[%clk 0:01:25.1]} 23... Rd8 {[%clk 0:00:52.2]}
24. Nd5 {[%clk 0:01:25.7]} 24... Qe8 {[%clk 0:00:52.3]} 25. e4 {[%clk
0:01:24.2]} 25... f4 {[%clk 0:00:42]} 26. b4 {[%clk 0:00:57]} 26... Nd4 {[%clk
0:00:35.6]} 27. Bxd4 {[%clk 0:00:42.5]} 27... cxd4 {[%clk 0:00:34.9]} 28. Ne1
{[%clk 0:00:40.7]} 28... Nd6 {[%clk 0:00:31.6]} 29. f3 {[%clk 0:00:38.4]} 29...
g5 {[%clk 0:00:32.5]} 30. Qb3 {[%clk 0:00:32.1]} 30... Bc6 {[%clk 0:00:32.8]}
31. c5 {[%clk 0:00:29]} 31... Nf7 {[%clk 0:00:30]} 32. cxb6 {[%clk 0:00:25.9]}
32... axb6 {[%clk 0:00:29.9]} 33. Nxb6 {[%clk 0:00:21.6]} 33... Rb8 {[%clk
0:00:26.2]} 34. Nd5 {[%clk 0:00:21.4]} 34... Ba4 {[%clk 0:00:26.8]} 35. Qb1
{[%clk 0:00:18.9]} 35... Bxd1 {[%clk 0:00:27.8]} 36. Bxd1 {[%clk 0:00:19.6]}
36... Qd8 {[%clk 0:00:27.5]} 37. Nd3 {[%clk 0:00:20.3]} 37... Nd6 {[%clk
0:00:28.1]} 38. Bb3 {[%clk 0:00:20.7]} 38... Kh8 {[%clk 0:00:28.3]} 39. Qc2
{[%clk 0:00:18.4]} 39... Rc8 {[%clk 0:00:28.9]} 40. Nc5 {[%clk 0:00:17.1]} 40...
h6 {[%clk 0:00:22]} 41. Qd3 {[%clk 0:00:17]} 41... Qe8 {[%clk 0:00:22.2]} 42. a4
{[%clk 0:00:12.9]} 42... Qg6 {[%clk 0:00:22.8]} 43. a5 {[%clk 0:00:11.9]} 43...
Rb8 {[%clk 0:00:22.7]} 44. Qd2 {[%clk 0:00:07.7]} 44... g4 {[%clk 0:00:23.9]}
45. Bd1 {[%clk 0:00:08.7]} 45... gxf3 {[%clk 0:00:23.7]} 46. Bxf3 {[%clk
0:00:10.6]} 46... Nc4 {[%clk 0:00:23.9]} 47. Qd3 {[%clk 0:00:08.1]} 47... Ne3
{[%clk 0:00:24.8]} 48. a6 {[%clk 0:00:06.9]} 48... Bf8 {[%clk 0:00:21.8]} 49.
Nxe3 {[%clk 0:00:05.2]} 49... fxe3 {[%clk 0:00:22.4]} 50. a7 {[%clk 0:00:04]}
50... Ra8 {[%clk 0:00:23]} 51. Qa3 {[%clk 0:00:05.3]} 51... Bxc5 {[%clk
0:00:24]} 52. bxc5 {[%clk 0:00:07.2]} 52... Qc6 {[%clk 0:00:24.7]} 53. Qa5
{[%clk 0:00:05.5]} 53... Rc8 {[%clk 0:00:23.7]} 54. Be2 {[%clk 0:00:06.5]} 54...
Qc7 {[%clk 0:00:24.9]} 55. Qxc7 {[%clk 0:00:06.9]} 55... Rxc7 {[%clk 0:00:26.4]}
56. a8=Q+ {[%clk 0:00:07.9]} 56... Kg7 {[%clk 0:00:27.8]} 57. Qb8 {[%clk
0:00:09]} 57... Rf7 {[%clk 0:00:28.7]} 58. c6 {[%clk 0:00:09.2]} 58... Kf6
{[%clk 0:00:29.2]} 59. c7 {[%clk 0:00:10.4]} 59... Rg7 {[%clk 0:00:30.5]} 60.
c8=Q {[%clk 0:00:11.3]} 1

[Event "Open Nuevo Centro. Jornada 2"]
[Site "Chess.com"]
[Date "2020.06.26"]
[Round "4"]
[White "Vicent Lázaro, Elena"]
[Black "Elenkov Olmo, Ivan"]
[Result "1/2-1/2"]
[WhiteElo "665"]
[BlackElo "910"]
[TimeControl "180+2"]
[EndTime "11:14:26 PDT"]
[Termination "Tablas por tiempo agotado contra material insuficiente"]

1. e3 {[%clk 0:03:01.9]} 1... e5 {[%clk 0:02:59.4]} 2. c4 {[%clk 0:03:01.1]}
2... Nc6 {[%clk 0:02:57.8]} 3. Nc3 {[%clk 0:03:01.1]} 3... Nf6 {[%clk
0:02:51.6]} 4. Bd3 {[%clk 0:03:01.5]} 4... d5 {[%clk 0:02:48]} 5. cxd5 {[%clk
0:03:00.6]} 5... Nxd5 {[%clk 0:02:46.6]} 6. Nxd5 {[%clk 0:03:00.2]} 6... Qxd5
{[%clk 0:02:46.4]} 7. Bb1 {[%clk 0:03:00]} 7... Qd8 {[%clk 0:02:38.5]} 8. Nf3
{[%clk 0:02:54.3]} 8... f6 {[%clk 0:02:31.7]} 9. O-O {[%clk 0:02:45.3]} 9... Bg4
{[%clk 0:02:27.7]} 10. h3 {[%clk 0:02:38.3]} 10... Bxf3 {[%clk 0:02:28.1]} 11.
gxf3 {[%clk 0:02:38.3]} 11... Bd6 {[%clk 0:02:27.2]} 12. a3 {[%clk 0:02:25.7]}
12... a6 {[%clk 0:02:26.7]} 13. b4 {[%clk 0:02:21.2]} 13... a5 {[%clk
0:02:25.5]} 14. bxa5 {[%clk 0:02:18.2]} 14... Nxa5 {[%clk 0:02:25.1]} 15. Qa4+
{[%clk 0:02:17.4]} 15... Nc6 {[%clk 0:02:24.3]} 16. Qc2 {[%clk 0:02:14.6]} 16...
O-O {[%clk 0:02:23.3]} 17. Qxh7+ {[%clk 0:02:01.3]} 17... Kf7 {[%clk 0:02:21.6]}
18. Qg6+ {[%clk 0:01:54.8]} 18... Kg8 {[%clk 0:02:21.4]} 19. Kh2 {[%clk
0:01:44.3]} 19... Ne7 {[%clk 0:02:21]} 20. Qh7+ {[%clk 0:01:42.8]} 20... Kf7
{[%clk 0:02:21.5]} 21. Rg1 {[%clk 0:01:41]} 21... Rg8 {[%clk 0:02:16.9]} 22.
Ba2+ {[%clk 0:01:36.7]} 22... Kf8 {[%clk 0:02:15.2]} 23. Bxg8 {[%clk 0:01:35.3]}
23... Nxg8 {[%clk 0:02:15.4]} 24. Qxg7+ {[%clk 0:01:35.8]} 24... Ke8 {[%clk
0:02:13.3]} 25. Qxg8+ {[%clk 0:01:35.4]} 25... Kd7 {[%clk 0:02:13.8]} 26. Qg7+
{[%clk 0:01:32.2]} 26... Qe7 {[%clk 0:02:10.4]} 27. Qg4+ {[%clk 0:01:29.9]}
27... Kd8 {[%clk 0:02:09]} 28. Qg8+ {[%clk 0:01:29.2]} 28... Kd7 {[%clk
0:02:08.7]} 29. Qxa8 {[%clk 0:01:24.7]} 29... e4+ {[%clk 0:02:06.7]} 30. f4
{[%clk 0:01:14]} 30... Qd8 {[%clk 0:02:02.1]} 31. Qxb7 {[%clk 0:01:13.4]} 31...
Qc8 {[%clk 0:02:00.4]} 32. Qb5+ {[%clk 0:01:11.7]} 32... c6 {[%clk 0:01:59.8]}
33. Qf5+ {[%clk 0:01:10.1]} 33... Kd8 {[%clk 0:01:59.5]} 34. Qxf6+ {[%clk
0:01:09.7]} 34... Kd7 {[%clk 0:01:59]} 35. Qf7+ {[%clk 0:01:07.6]} 35... Be7
{[%clk 0:01:58.2]} 36. Qf5+ {[%clk 0:00:58.7]} 36... Kd8 {[%clk 0:01:58]} 37.
Qxe4 {[%clk 0:00:57.7]} 37... Ke8 {[%clk 0:01:57]} 38. Bb2 {[%clk 0:00:47.5]}
38... Kd7 {[%clk 0:01:53.2]} 39. Rg7 {[%clk 0:00:40.1]} 39... Qd8 {[%clk
0:01:50]} 40. Bc3 {[%clk 0:00:37.5]} 40... c5 {[%clk 0:01:48]} 41. Ba5 {[%clk
0:00:37.6]} 41... Qe8 {[%clk 0:01:46.3]} 42. Rc1 {[%clk 0:00:33.1]} 42... Qf8
{[%clk 0:01:43.6]} 43. Rxe7+ {[%clk 0:00:24.7]} 43... Qxe7 {[%clk 0:01:43.5]}
44. Qb7+ {[%clk 0:00:17]} 44... Kd6 {[%clk 0:01:42.7]} 45. Bc7+ {[%clk
0:00:14.4]} 45... Kd7 {[%clk 0:01:42.5]} 46. Bd8+ {[%clk 0:00:13.1]} 46... Kxd8
{[%clk 0:01:43]} 47. Qb6+ {[%clk 0:00:08.5]} 47... Kd7 {[%clk 0:01:43.1]} 48.
Rxc5 {[%clk 0:00:07.1]} 48... Ke8 {[%clk 0:01:34.6]} 49. Qb8+ {[%clk 0:00:05.7]}
49... Kf7 {[%clk 0:01:34]} 50. Qb3+ {[%clk 0:00:03.1]} 50... Kf8 {[%clk
0:01:32.3]} 51. Rc8+ {[%clk 0:00:03.4]} 51... Kg7 {[%clk 0:01:31.2]} 52. Qc3+
{[%clk 0:00:02.7]} 52... Kf7 {[%clk 0:01:29.7]} 53. Rc7 {[%clk 0:00:03]} 53...
Kg6 {[%clk 0:01:29.4]} 54. Rxe7 {[%clk 0:00:03.1]} 54... Kf5 {[%clk 0:01:29.3]}
55. Qf6+ {[%clk 0:00:03.8]} 55... Kxf6 {[%clk 0:01:03.2]} 56. Re4 {[%clk
0:00:02.6]} 56... Kf5 {[%clk 0:01:03.5]} 57. Re5+ {[%clk 0:00:02.7]} 57... Kf6
{[%clk 0:01:01.6]} 58. Rf5+ {[%clk 0:00:02.5]} 58... Ke6 {[%clk 0:01:02.1]}
1/2-1

[Event "Open Nuevo Centro. Jornada 2"]
[Site "Chess.com"]
[Date "2020.06.26"]
[Round "4"]
[White "García Oviedo, Alejandro"]
[Black "Gálvez Torres, Guillermo"]
[Result "1-0"]
[WhiteElo "1847"]
[BlackElo "1096"]
[TimeControl "180+2"]
[EndTime "11:14:49 PDT"]
[Termination "Victoria de alexgarov por abandono"]

1. Nf3 {[%clk 0:03:01.7]} 1... c5 {[%clk 0:02:59.7]} 2. g3 {[%clk 0:03:03.6]}
2... d6 {[%clk 0:03:00.6]} 3. Bg2 {[%clk 0:03:04.6]} 3... Nc6 {[%clk 0:03:01.5]}
4. O-O {[%clk 0:03:04.2]} 4... Nf6 {[%clk 0:03:01.3]} 5. d4 {[%clk 0:02:59.9]}
5... cxd4 {[%clk 0:03:00.7]} 6. Nxd4 {[%clk 0:03:01.8]} 6... Nxd4 {[%clk
0:03:00.9]} 7. Qxd4 {[%clk 0:03:03.7]} 7... g6 {[%clk 0:02:59.7]} 8. Bg5 {[%clk
0:03:00.2]} 8... Bg7 {[%clk 0:02:59.2]} 9. Qb4 {[%clk 0:03:01.7]} 9... O-O
{[%clk 0:02:56.7]} 10. Nc3 {[%clk 0:03:01.9]} 10... Rb8 {[%clk 0:02:51.6]} 11.
Qa4 {[%clk 0:02:58.8]} 11... Bd7 {[%clk 0:02:47.1]} 12. Qxa7 {[%clk 0:02:58.5]}
12... Qc7 {[%clk 0:02:36.4]} 13. Bxf6 {[%clk 0:02:52.8]} 13... Bxf6 {[%clk
0:02:34]} 14. Nd5 {[%clk 0:02:53.9]} 14... Qc5 {[%clk 0:02:19]} 15. Nxf6+ {[%clk
0:02:54.5]} 15... exf6 {[%clk 0:02:17.3]} 16. Qxc5 {[%clk 0:02:55.3]} 16... dxc5
{[%clk 0:02:17.9]} 17. Rfd1 {[%clk 0:02:57.2]} 17... Bf5 {[%clk 0:02:15.2]} 18.
e4 {[%clk 0:02:57.8]} 18... Bg4 {[%clk 0:02:14.4]} 19. Rd5 {[%clk 0:02:58.4]}
19... b6 {[%clk 0:02:11.1]} 20. Bf1 {[%clk 0:02:38.4]} 20... f5 {[%clk
0:02:10.2]} 21. e5 {[%clk 0:02:33.4]} 21... Bf3 {[%clk 0:02:09.3]} 22. Rd3
{[%clk 0:02:32.9]} 22... Be4 {[%clk 0:02:08]} 23. Rc3 {[%clk 0:02:33.7]} 23...
Rfd8 {[%clk 0:02:04.3]} 24. f3 {[%clk 0:02:25.3]} 24... Bc6 {[%clk 0:01:59.4]}
25. Bd3 {[%clk 0:02:25.4]} 25... Bxf3 {[%clk 0:01:55.7]} 26. Bxf5 {[%clk
0:02:26.5]} 26... Bc6 {[%clk 0:01:33.8]} 27. Bd3 {[%clk 0:02:23.6]} 27... Ba4
{[%clk 0:01:29.1]} 28. Re1 {[%clk 0:02:22.2]} 28... Re8 {[%clk 0:01:25.4]} 29.
b3 {[%clk 0:02:13.2]} 29... Bc6 {[%clk 0:01:25.2]} 30. a4 {[%clk 0:02:14.5]}
30... f6 {[%clk 0:01:24.1]} 31. e6 {[%clk 0:02:03.8]} 31... Bd5 {[%clk
0:01:18.3]} 32. Bb5 {[%clk 0:01:47.2]} 32... Rxe6 {[%clk 0:01:15.1]} 33. Rxe6
{[%clk 0:01:47.2]} 33... Bxe6 {[%clk 0:01:15.7]} 34. Rd3 {[%clk 0:01:47.1]}
34... Kg7 {[%clk 0:01:07.4]} 35. Rd6 {[%clk 0:01:46.7]} 35... Bf5 {[%clk
0:01:02.3]} 36. c3 {[%clk 0:01:42.9]} 36... Bc2 {[%clk 0:00:57.3]} 37. Bc4
{[%clk 0:01:43.7]} 37... f5 {[%clk 0:00:53.4]} 38. Kf2 {[%clk 0:01:44.2]} 38...
Be4 {[%clk 0:00:47.9]} 39. Ke3 {[%clk 0:01:39.7]} 39... Kh6 {[%clk 0:00:46.4]}
40. Rd7 {[%clk 0:01:37.5]} 40... Rb7 {[%clk 0:00:35.3]} 41. Rxb7 {[%clk
0:01:04.3]} 41... Bxb7 {[%clk 0:00:34.5]} 42. Kf4 {[%clk 0:01:01]} 42... Kg7
{[%clk 0:00:34.3]} 43. h4 {[%clk 0:00:50.5]} 43... Kf6 {[%clk 0:00:34.3]} 44. b4
{[%clk 0:00:51]} 44... Bc6 {[%clk 0:00:25.2]} 45. bxc5 {[%clk 0:00:28.6]} 45...
bxc5 {[%clk 0:00:23.9]} 46. a5 {[%clk 0:00:29.9]} 46... Ke7 {[%clk 0:00:22.8]}
47. Bg8 {[%clk 0:00:29.9]} 47... Kf6 {[%clk 0:00:21]} 48. Bc4 {[%clk 0:00:28.9]}
48... Ke7 {[%clk 0:00:18.9]} 49. a6 {[%clk 0:00:29.4]} 49... Kd7 {[%clk
0:00:17.4]} 50. Ke5 {[%clk 0:00:30.6]} 50... Ke7 {[%clk 0:00:17.4]} 51. Bd5
{[%clk 0:00:26.7]} 51... Bxd5 {[%clk 0:00:13.4]} 52. Kxd5 {[%clk 0:00:28.6]}
52... Kd7 {[%clk 0:00:14.3]} 53. a7 {[%clk 0:00:29.3]} 53... f4 {[%clk
0:00:12.3]} 54. gxf4 {[%clk 0:00:30.3]} 54... h5 {[%clk 0:00:10.9]} 55. a8=Q
{[%clk 0:00:31.3]} 55... Kc7 {[%clk 0:00:10.7]} 56. Qa6 {[%clk 0:00:25.5]} 56...
Kd7 {[%clk 0:00:11]} 57. Qa7+ {[%clk 0:00:26.2]} 57... Ke8 {[%clk 0:00:10.3]}
58. Ke6 {[%clk 0:00:27.5]} 1

[Event "Open Nuevo Centro. Jornada 2"]
[Site "Chess.com"]
[Date "2020.06.26"]
[Round "4"]
[White "Alvarez Usina, Jordi"]
[Black "Reig Albero, Ferran"]
[Result "0-1"]
[WhiteElo "1186"]
[BlackElo "1798"]
[TimeControl "180+2"]
[EndTime "11:14:55 PDT"]
[Termination "Victoria de Narref por tiempo"]

1. d4 {[%clk 0:02:58.9]} 1... Nf6 {[%clk 0:02:58.6]} 2. Bf4 {[%clk 0:02:57.2]}
2... e6 {[%clk 0:02:59.3]} 3. e3 {[%clk 0:02:55.8]} 3... c5 {[%clk 0:03:00.2]}
4. c3 {[%clk 0:02:54.6]} 4... b6 {[%clk 0:03:01.2]} 5. Nf3 {[%clk 0:02:53.8]}
5... Bb7 {[%clk 0:03:02.1]} 6. Bd3 {[%clk 0:02:54]} 6... Be7 {[%clk 0:03:03.1]}
7. Nbd2 {[%clk 0:02:52.9]} 7... Nc6 {[%clk 0:03:03.7]} 8. O-O {[%clk 0:02:50.8]}
8... Nh5 {[%clk 0:03:00.6]} 9. Bg3 {[%clk 0:02:49.8]} 9... Nxg3 {[%clk
0:03:00.2]} 10. hxg3 {[%clk 0:02:49.5]} 10... O-O {[%clk 0:03:01.1]} 11. Nh2
{[%clk 0:02:33.1]} 11... d6 {[%clk 0:02:56.8]} 12. Nhf3 {[%clk 0:02:19.8]} 12...
f5 {[%clk 0:02:56.5]} 13. Kh2 {[%clk 0:02:17.8]} 13... g6 {[%clk 0:02:53.5]} 14.
Rh1 {[%clk 0:02:18]} 14... e5 {[%clk 0:02:53.5]} 15. Nh4 {[%clk 0:02:13.6]}
15... Bxh4 {[%clk 0:02:48.7]} 16. gxh4 {[%clk 0:02:13.4]} 16... Qxh4+ {[%clk
0:02:48.5]} 17. Kg1 {[%clk 0:02:13.9]} 17... Qf6 {[%clk 0:02:46.8]} 18. Qf3
{[%clk 0:02:06.7]} 18... Kg7 {[%clk 0:02:31.4]} 19. Qh3 {[%clk 0:02:04.6]} 19...
h5 {[%clk 0:02:29]} 20. Be2 {[%clk 0:01:53]} 20... Rh8 {[%clk 0:02:25.6]} 21.
Nf3 {[%clk 0:01:45.3]} 21... g5 {[%clk 0:02:16.5]} 22. Qg3 {[%clk 0:01:39.1]}
22... h4 {[%clk 0:02:07.4]} 23. Qxg5+ {[%clk 0:01:38.2]} 23... Qxg5 {[%clk
0:02:05.6]} 24. Nxg5 {[%clk 0:01:37.2]} 24... Kf6 {[%clk 0:02:03.8]} 25. Nf3
{[%clk 0:01:37]} 25... exd4 {[%clk 0:02:01]} 26. Rxh4 {[%clk 0:01:28.3]} 26...
Rxh4 {[%clk 0:01:59.9]} 27. Nxh4 {[%clk 0:01:28.6]} 27... dxe3 {[%clk 0:01:49]}
28. fxe3 {[%clk 0:01:27.1]} 28... Ne5 {[%clk 0:01:47.8]} 29. Nf3 {[%clk
0:01:25.8]} 29... Ng4 {[%clk 0:01:40.5]} 30. Nd2 {[%clk 0:01:13.1]} 30... Nxe3
{[%clk 0:01:36.8]} 31. Kf2 {[%clk 0:01:08.5]} 31... Nxg2 {[%clk 0:01:33.9]} 32.
Bf3 {[%clk 0:01:03.8]} 32... Bxf3 {[%clk 0:01:31]} 33. Kxf3 {[%clk 0:01:02.6]}
33... Nh4+ {[%clk 0:01:28.9]} 34. Kf2 {[%clk 0:01:00.3]} 34... Rg8 {[%clk
0:01:23]} 35. Rh1 {[%clk 0:00:52.5]} 35... Rg2+ {[%clk 0:01:21.9]} 36. Ke3
{[%clk 0:00:52.2]} 36... f4+ {[%clk 0:01:13.9]} 37. Kd3 {[%clk 0:00:45.5]} 37...
Kg5 {[%clk 0:01:14.1]} 38. Ne4+ {[%clk 0:00:41.6]} 38... Kg4 {[%clk 0:01:10.6]}
39. Nf6+ {[%clk 0:00:39.2]} 39... Kf5 {[%clk 0:01:05]} 40. Rxh4 {[%clk
0:00:35.3]} 40... Kxf6 {[%clk 0:01:04.6]} 41. Rxf4+ {[%clk 0:00:34.7]} 41... Ke5
{[%clk 0:01:05.1]} 42. Rf7 {[%clk 0:00:33.9]} 42... Rxb2 {[%clk 0:00:59.4]} 43.
Rxa7 {[%clk 0:00:33.7]} 43... d5 {[%clk 0:01:00.1]} 44. c4 {[%clk 0:00:29.8]}
44... d4 {[%clk 0:00:56.4]} 45. Ra6 {[%clk 0:00:23.4]} 45... Rb1 {[%clk
0:00:50.1]} 46. Kc2 {[%clk 0:00:21.5]} 46... Rb4 {[%clk 0:00:45.5]} 47. Kd3
{[%clk 0:00:20.5]} 47... Kf4 {[%clk 0:00:44.1]} 48. Ra7 {[%clk 0:00:14.9]} 48...
Kf3 {[%clk 0:00:40.9]} 49. Ra6 {[%clk 0:00:14]} 49... Kf2 {[%clk 0:00:41.1]} 50.
Ra7 {[%clk 0:00:13.4]} 50... Ke1 {[%clk 0:00:40.1]} 51. Re7+ {[%clk 0:00:12.6]}
51... Kd1 {[%clk 0:00:40.7]} 52. Ra7 {[%clk 0:00:11.4]} 52... Kc1 {[%clk
0:00:40.9]} 53. a4 {[%clk 0:00:10.1]} 53... Kb2 {[%clk 0:00:33.6]} 54. a5 {[%clk
0:00:08]} 54... Rb3+ {[%clk 0:00:31.3]} 55. Ke4 {[%clk 0:00:04.2]} 55... Re3+
{[%clk 0:00:27.3]} 56. Kd5 {[%clk 0:00:03.1]} 56... d3 {[%clk 0:00:25]} 57. axb6
{[%clk 0:00:03.4]} 57... d2 {[%clk 0:00:25.4]} 58. b7 {[%clk 0:00:03.5]} 58...
d1=Q+ {[%clk 0:00:24.8]} 59. Kxc5 {[%clk 0:00:03]} 59... Re5+ {[%clk 0:00:21.2]}
60. Kc6 {[%clk 0:00:02.4]} 60... Qb3 {[%clk 0:00:18.7]} 0

[Event "Open Nuevo Centro. Jornada 2"]
[Site "Chess.com"]
[Date "2020.06.26"]
[Round "4"]
[White "Gil López, Alejandro"]
[Black "Giaccio González, Alfredo Gustavo"]
[Result "1/2-1/2"]
[WhiteElo "2118"]
[BlackElo "2380"]
[TimeControl "180+2"]
[EndTime "11:15:19 PDT"]
[Termination "Tablas por repeticiÃ³n de movimientos"]

1. e4 {[%clk 0:03:01.9]} 1... e6 {[%clk 0:03:00.8]} 2. Nf3 {[%clk 0:03:01.7]}
2... d5 {[%clk 0:03:02.2]} 3. exd5 {[%clk 0:03:03.6]} 3... exd5 {[%clk
0:03:02.7]} 4. d4 {[%clk 0:03:05.5]} 4... Bd6 {[%clk 0:03:03.8]} 5. Bd3 {[%clk
0:03:04.1]} 5... Nc6 {[%clk 0:03:04.2]} 6. O-O {[%clk 0:03:03.2]} 6... Nge7
{[%clk 0:03:05.5]} 7. c3 {[%clk 0:03:04.6]} 7... O-O {[%clk 0:03:03]} 8. a4
{[%clk 0:03:04.6]} 8... Bf5 {[%clk 0:03:00.3]} 9. Bxf5 {[%clk 0:03:04.3]} 9...
Nxf5 {[%clk 0:03:00.7]} 10. Qd3 {[%clk 0:03:04.1]} 10... Qd7 {[%clk 0:03:01]}
11. Nbd2 {[%clk 0:02:57.7]} 11... Nce7 {[%clk 0:02:55.8]} 12. Re1 {[%clk
0:02:55.9]} 12... Ng6 {[%clk 0:02:56.4]} 13. Nf1 {[%clk 0:02:54.3]} 13... c6
{[%clk 0:02:46.2]} 14. Ng3 {[%clk 0:02:53.3]} 14... Bxg3 {[%clk 0:02:43.2]} 15.
hxg3 {[%clk 0:02:55.2]} 15... f6 {[%clk 0:02:41.8]} 16. b4 {[%clk 0:02:25.8]}
16... Nd6 {[%clk 0:02:40.4]} 17. Bf4 {[%clk 0:02:14.9]} 17... Nxf4 {[%clk
0:02:06]} 18. gxf4 {[%clk 0:02:16.8]} 18... Rfe8 {[%clk 0:02:07.3]} 19. Nd2
{[%clk 0:02:14.6]} 19... Re6 {[%clk 0:01:58.9]} 20. Rxe6 {[%clk 0:02:12.5]}
20... Qxe6 {[%clk 0:02:00.1]} 21. Qe3 {[%clk 0:02:09.4]} 21... Qf5 {[%clk
0:01:52.9]} 22. Nb3 {[%clk 0:02:02.9]} 22... Re8 {[%clk 0:01:52.4]} 23. Qd2
{[%clk 0:02:02.7]} 23... Nc4 {[%clk 0:01:49.7]} 24. Qc1 {[%clk 0:01:59.4]} 24...
b6 {[%clk 0:01:30.2]} 25. a5 {[%clk 0:01:55.3]} 25... h6 {[%clk 0:01:23.2]} 26.
axb6 {[%clk 0:01:51.8]} 26... axb6 {[%clk 0:01:25.1]} 27. Nd2 {[%clk 0:01:50.5]}
27... Qxf4 {[%clk 0:01:16.5]} 28. Nxc4 {[%clk 0:01:48.7]} 28... Qxc1+ {[%clk
0:01:17.7]} 29. Rxc1 {[%clk 0:01:50.4]} 29... dxc4 {[%clk 0:01:19]} 30. Ra1
{[%clk 0:01:39.6]} 30... b5 {[%clk 0:01:12.8]} 31. Kf1 {[%clk 0:01:40]} 31...
Kf7 {[%clk 0:01:11.2]} 32. Ra6 {[%clk 0:01:37.2]} 32... Re6 {[%clk 0:01:07.8]}
33. Ra7+ {[%clk 0:01:30]} 33... Re7 {[%clk 0:01:08.7]} 34. Ra6 {[%clk
0:01:28.1]} 34... Rc7 {[%clk 0:01:10.1]} 35. Ke2 {[%clk 0:01:26.5]} 35... Ke6
{[%clk 0:01:11.4]} 36. Ke3 {[%clk 0:01:27.1]} 36... Kd5 {[%clk 0:01:12.9]} 37.
Ra8 {[%clk 0:01:24.2]} 37... Re7+ {[%clk 0:01:13.4]} 38. Kf4 {[%clk 0:01:21.7]}
38... Ke6 {[%clk 0:00:56.6]} 39. g4 {[%clk 0:01:19.5]} 39... g5+ {[%clk
0:00:54.1]} 40. Kf3 {[%clk 0:01:18]} 40... f5 {[%clk 0:00:53.2]} 41. gxf5+
{[%clk 0:01:15.9]} 41... Kxf5 {[%clk 0:00:53.8]} 42. Rf8+ {[%clk 0:01:14.4]}
42... Kg6 {[%clk 0:00:53.6]} 43. Rc8 {[%clk 0:01:14.4]} 43... Re6 {[%clk
0:00:54.6]} 44. Kg4 {[%clk 0:01:11.7]} 44... h5+ {[%clk 0:00:55.4]} 45. Kg3
{[%clk 0:01:11.4]} 45... Kf5 {[%clk 0:00:53.3]} 46. f3 {[%clk 0:01:07.9]} 46...
h4+ {[%clk 0:00:49.7]} 47. Kf2 {[%clk 0:01:06.5]} 47... Rf6 {[%clk 0:00:49.5]}
48. Rg8 {[%clk 0:01:04.5]} 48... Kf4 {[%clk 0:00:45.3]} 49. Re8 {[%clk
0:01:02.8]} 49... Kf5 {[%clk 0:00:41.2]} 50. Rg8 {[%clk 0:01:01.9]} 50... Re6
{[%clk 0:00:37.2]} 51. Rf8+ {[%clk 0:01:00.3]} 51... Kg6 {[%clk 0:00:38.4]} 52.
Rg8+ {[%clk 0:00:58.7]} 52... Kf6 {[%clk 0:00:39.6]} 53. Rf8+ {[%clk 0:00:59.4]}
53... Kg7 {[%clk 0:00:40.9]} 54. Rc8 {[%clk 0:00:57.7]} 54... Kf7 {[%clk
0:00:35.5]} 55. Rc7+ {[%clk 0:00:56.1]} 55... Kf6 {[%clk 0:00:36.2]} 56. Rc8
{[%clk 0:00:55.8]} 56... Ke7 {[%clk 0:00:37.2]} 57. Rg8 {[%clk 0:00:52]} 57...
h3 {[%clk 0:00:35.5]} 58. Rh8 {[%clk 0:00:47.2]} 58... Rf6 {[%clk 0:00:30.5]}
59. Rxh3 {[%clk 0:00:38.7]} 59... g4 {[%clk 0:00:27.5]} 60. Rg3 {[%clk
0:00:39.9]} 60... gxf3 {[%clk 0:00:27.6]} 61. Rxf3 {[%clk 0:00:41.8]} 61... Rh6
{[%clk 0:00:27.6]} 62. Ke3 {[%clk 0:00:40]} 62... Rh2 {[%clk 0:00:27.7]} 63. Rg3
{[%clk 0:00:38.4]} 63... Rc2 {[%clk 0:00:26.3]} 64. Ke4 {[%clk 0:00:38.3]} 64...
Re2+ {[%clk 0:00:27.6]} 65. Kf4 {[%clk 0:00:38.6]} 65... Kf6 {[%clk 0:00:26.8]}
66. Rh3 {[%clk 0:00:38.6]} 66... Ke7 {[%clk 0:00:21.5]} 67. Re3+ {[%clk
0:00:36.2]} 67... Rxe3 {[%clk 0:00:21.5]} 68. Kxe3 {[%clk 0:00:38.1]} 68... Kf6
{[%clk 0:00:18.8]} 69. Kf4 {[%clk 0:00:38.7]} 69... Ke6 {[%clk 0:00:19.4]} 70.
Ke4 {[%clk 0:00:39.6]} 70... Kd6 {[%clk 0:00:20.9]} 71. Kf4 {[%clk 0:00:27.7]}
71... Kd5 {[%clk 0:00:22.8]} 72. Kf5 {[%clk 0:00:28.3]} 72... Kd6 {[%clk
0:00:24.3]} 73. Kf6 {[%clk 0:00:28.5]} 73... Kd5 {[%clk 0:00:25.8]} 74. Kf5
{[%clk 0:00:29.7]} 74... Kd6 {[%clk 0:00:26.8]} 75. Kf6 {[%clk 0:00:30.9]} 75...
Kd5 {[%clk 0:00:26.2]} 76. Kf5 {[%clk 0:00:31.5]} 1/2-1